Cogmind - Beta 16.1 @@@ ROGUE MODE // 2026.03.06 @ 13:09:27 Player: FL-IST Result: Destroyed by DAS Turret with DAS Cannon Performance ------------- Evolutions (1) 500 Regions Visited (4) 800 Robots Destroyed (91) 455 Value Destroyed (1973) 1973 Prototype IDs (26) 520 Alien Tech Used (0) 0 Bonus (305) 305 TOTAL SCORE: 4553 Bonus ------- High Alert Combat Kills 141 Follower Combat Kills 60 Aligned with FarCom 300 Friendly Fire -196 Cogmind --------- Core Integrity 0/400 Matter 245/300 Energy 100/100 System Corruption 2% Temperature Cool (0) Movement Core (350) Ox6 Location -9/Exiles Parts ------- > --- POWER (1) -------- (None) > --- PROPULSION (3) --- (None) > --- UTILITY (2) ------ Large Storage Unit > --- WEAPON (3) ------- (None) > --- INVENTORY (15) --- Advanced Weapon Cycler Light Armor Plating Light Armor Plating Shield Generator Improved Assault Rifle Improved Assault Rifle Improved Assault Rifle 8R-AWN's Boregun Peak State ------------ > --- POWER ------------ Reinforced Fission Core > --- PROPULSION ------- Advanced Myomer Leg > --- UTILITY ---------- Large Storage Unit Medium Armor Plating > --- WEAPON ----------- Improved Assault Rifle Improved Assault Rifle 8R-AWN's Boregun > --- INVENTORY -------- Advanced Weapon Cycler Light Armor Plating Light Armor Plating Shield Generator Improved Assault Rifle Improved Grenade Launcher Improved Grenade Launcher [Rating: 35] Favorites ----------- Power Light Ion Engine Engine Light Ion Engine Power Core Reinforced Fission Core Propulsion Light Treads Treads Light Treads Leg Advanced Myomer Leg Utility Seismic Detector Device Seismic Detector Storage Large Storage Unit Protection Light Armor Plating Weapon Improved Assault Rifle Energy Cannon Beam Cannon Ballistic Gun Improved Assault Rifle Launcher Improved Grenade Launcher Build | -11 -10 -9 -9 -9 ------- Run | Yrd Mat Mat Min Exi Slots Evolved 2 | . . 2 . . Power . | . . . . . Propulsion 1 | . . 1 . . Utility . | . . . . . Weapon 1 | . . 1 . . Parts Attached 40 | 7 3 20 3 7 Power 4 | 1 . 2 . 1 Engine 3 | 1 . 2 . . Core 1 | . . . . 1 Reactor . | . . . . . Propulsion 14 | 2 . 8 3 1 Treads 13 | 2 . 8 3 . Leg 1 | . . . . 1 Wheel . | . . . . . Hover . | . . . . . Flight . | . . . . . Utility 7 | 2 2 1 . 2 Device 2 | 1 1 . . . Storage 2 | 1 1 . . . Processor . | . . . . . Hackware . | . . . . . Protection 3 | . . 1 . 2 Artifact . | . . . . . Weapon 15 | 2 1 9 . 3 Energy Gun . | . . . . . Energy Cannon 2 | . 1 1 . . Ballistic Gun 11 | 2 . 6 . 3 Ballistic Cannon . | . . . . . Launcher 2 | . . 2 . . Special Weapon . | . . . . . Impact Weapon . | . . . . . Slashing Weapon . | . . . . . Piercing Weapon . | . . . . . Special Melee Weapon . | . . . . . Unidentified Prototypes 3 | . . 1 . 2 Corrupted Parts 1 | . . . . 1 System Corruption 1 | . . . . 1 Parts Lost 20 | . 2 3 . 15 Power 4 | . . 2 . 2 Propulsion 5 | . . 1 . 4 Utility 4 | . 1 . . 3 Weapon 7 | . 1 . . 6 Highest Loss Streak 8 | . 1 1 . 8 To Critical Strikes 7 | . . . . 7 Average Backups 11 | 3 7 13 14 10 Power . | . . . . . Propulsion 1 | 1 1 1 1 . Utility 3 | . . 3 5 4 Weapon 6 | . 5 8 6 5 Tool/Special . | . . . . . Unused Backups 22 | . 3 4 4 11 Power 4 | . 1 . . 3 Propulsion 2 | . 2 . . . Utility 10 | . . . 3 7 Weapon 5 | . . 4 . 1 Tool/Special 1 | . . . 1 . Average Slot Usage (%) 97 | . 99 96 100 93 Engine 10 | . 14 8 11 8 Treads 30 | . 28 32 33 27 Device 9 | . 13 10 5 8 Storage 11 | . 14 11 11 11 Protection 1 | . . . 5 2 Energy Cannon 5 | . 12 6 . . Ballistic Gun 25 | . 15 26 32 29 Peak Build Rating 35 | 7 7 17 18 35 Average Rating 13 | 5 6 13 17 18 On Entrance 9 | . 7 7 17 18 Avg Prop Armor Cover (%) . | . . . . . Naked Turns . | . . . . . Heaviest Build 63 | 15 31 36 39 63 Greatest Support 60 | 40 40 60 60 60 Greatest Overweight (x) 15 | . . . . 15 Average Overweight (x) . | . . . . . Largest Inventory Capacity 15 | 8 15 15 15 15 Average Capacity 13 | 7 10 15 15 15 Most Carried 15 | 5 8 15 15 15 Average Carried 11 | 3 7 13 14 11 Final Capacity 15 | 8 15 15 15 15 Final Carried 15 | 5 7 15 15 8 Class Distribution -------------------- 47% | Scavenger-Gunner 31% | Mutant 11% | Scavenger-Tank 6% | Gunner Dominant Class ---------------- Mutant | -10/Materials Scavenger-Gunner | -9/Materials Scavenger-Tank | -9/Mines Scavenger-Gunner | -9/Exiles Resources | -11 -10 -9 -9 -9 ----------- Run | Yrd Mat Mat Min Exi Matter Collected 2169 | 322 228 849 318 452 Remotely . | . . . . . Salvage Created 2995 | 125 686 1918 134 132 Parts 182 | 11 31 133 3 4 Haulers Intercepted 8 | . 2 6 . . Recyclers Shooed 4 | . . 4 . . Parts Field Recycled . | . . . . . Retrieved Matter . | . . . . . Parts Self-Destructed . | . . . . . Prevented . | . . . . . Parts Restored . | . . . . . Kills | -11 -10 -9 -9 -9 ------- Run | Yrd Mat Mat Min Exi Combat Hostiles Destroyed 64 | . 14 38 7 5 Guns 38 | . 6 27 2 3 Cannons 13 | . 8 5 . . AOE 13 | . . 6 5 2 Classes Destroyed 15 | 3 4 6 2 . Worker 8 | 1 . 7 . . Builder 4 | . . 4 . . Tunneler 4 | 3 . 1 . . Hauler 8 | . 2 6 . . Recycler 3 | 1 1 1 . . Mechanic 1 | . . 1 . . Operator 1 | . . 1 . . Watcher 6 | . 2 4 . . Swarmer 13 | . 3 10 . . Grunt 28 | . 11 17 . . Brawler 2 | . . 2 . . Protector 1 | . . 1 . . Sentry 8 | . . 8 . . Demolisher 2 | . . . 2 . Assembled 9 | . . . 5 4 Thug 1 | . . . 1 . Best Kill Streak 9 | 3 3 9 5 4 Combat Bots Only 5 | . 2 5 5 4 Max Kills in Single Turn 5 | 1 1 4 5 2 Gunslinging . | . . . . . Exploded 5 | . . 2 5 2 Melee . | . . . . . Uniques/NPCs Destroyed 1 | . . . . 1 8R-AWN (-9/Exiles) Combat | -11 -10 -9 -9 -9 -------- Run | Yrd Mat Mat Min Exi Hostile Shots Fired 303 | . 74 107 18 104 Missed 73 | . 20 28 6 19 Hits 230 | . 54 79 12 85 Melee 4 | . . 1 . 3 Projectile 226 | . 54 78 12 82 Critical Strikes 33 | . 1 3 . 29 Damage Taken 3984 | . 670 1183 176 1955 Core 586 | . 178 193 40 175 Absorbed by Shields . | . . . . . Core Remaining (%) 64 | 100 28 . . . Volleys Fired 201 | 13 55 89 7 37 Largest 3 | 2 2 3 3 3 Hottest 106 | 40 80 106 95 95 Shots Fired 528 | 26 110 267 21 104 Gun 410 | 26 55 215 19 95 Cannon 98 | . 55 43 . . Launcher 20 | . . 9 2 9 Special . | . . . . . Kinetic 410 | 26 55 215 19 95 Thermal 98 | . 55 43 . . Explosive 20 | . . 9 2 9 Electromagnetic . | . . . . . Robot Hit Streak 45 | 10 9 21 14 45 Robot Miss Streak 8 | 3 8 5 1 2 Penetration Max . | . . . . . Secondary Targets . | . . . . . Shots Hit Robots 330 | 17 61 160 16 76 Core Hits 159 | 6 25 89 15 24 Critical Kills 1 | . . 1 . . Critical Parts Destroyed 2 | . . 1 . 1 Critical Strikes 3 | . . 2 . 1 Destroy 3 | . . 2 . 1 Melee Attacks . | . . . . . Impact . | . . . . . Slashing . | . . . . . Piercing . | . . . . . Sneak Attacks . | . . . . . Combat Hostiles . | . . . . . Follow-up Attacks . | . . . . . Damage Inflicted 6880 | 230 943 3596 622 1489 Guns 3973 | 230 421 1917 241 1164 Cannons 1089 | . 522 567 . . Explosions 1816 | . . 1110 381 325 Melee . | . . . . . Ramming 2 | . . 2 . . Kinetic 3973 | 230 421 1917 241 1164 Thermal 1089 | . 522 567 . . Explosive 1816 | . . 1110 381 325 Electromagnetic . | . . . . . Impact . | . . . . . Slashing . | . . . . . Piercing . | . . . . . Highest Corruption 2 | . . . . 2 Average Corruption 1 | . . . . 1 Corruption Purged . | . . . . . Corruption Blocked . | . . . . . Effects 2 | . . . . 2 Message Errors 1 | . . . . 1 Energy Discharges 1 | . . . . 1 Overload Shots . | . . . . . Overflow Damage 210 | . 9 173 8 20 Projectiles 29 | . 9 20 . . Explosions 181 | . . 153 8 20 Melee . | . . . . . Knockbacks . | . . . . . Impact . | . . . . . Kinetic . | . . . . . Secondary . | . . . . . Self-Inflicted Damage 264 | . . 218 . 46 Shots 6 | . . 5 . 1 Rammed 2 | . . 2 . . Targets Rammed 2 | . . 2 . . Kicked . | . . . . . Crushed . | . . . . . Highest Temperature 232 | . 232 193 24 72 Average Temperature 55 | . 72 49 8 23 Received Heat Transfer 585 | . 213 345 27 . Siege Activations . | . . . . . Martial Activations . | . . . . . Shielding Activations . | . . . . . Robots Disrupted . | . . . . . Combat Hostiles . | . . . . . Robots Corrupted . | . . . . . Combat Hostiles . | . . . . . Parts Fried . | . . . . . Impact Corruptions . | . . . . . Robots Melted . | . . . . . Combat Hostiles . | . . . . . Parts Melted 1 | . . 1 . . Heat Transferred 2257 | . 1073 1184 . . Parts Sabotaged . | . . . . . Parts Stolen . | . . . . . Parts Stripped . | . . . . . Power Chain Reactions . | . . . . . Alert | -11 -10 -9 -9 -9 ------- Run | Yrd Mat Mat Min Exi Maximum Alert Level 3 | . 1 3 1 . Low Security (%) 57 | 100 80 29 69 . Level 1 30 | . 19 42 30 . Level 2 10 | . . 25 . . Level 3 1 | . . 2 . . Level 4 . | . . . . . Level 5 . | . . . . . High Security . | . . . . . Max Security . | . . . . . Peak Influence 814 | 10 243 814 328 . Initial 313 | . . 53 313 . Average 214 | 1 133 318 177 . Influence Increases 2014 | 25 529 1333 127 . Destroy 0b10 Robot/C 1100 | . 280 740 80 . Destroy 0b10 Robot/NC 180 | 25 25 130 . . Destroy Leader 268 | . 58 190 20 . Allied During Kill 12 | . . . 12 . Successful Hack 39 | . 30 9 . . Select Force Hacks 120 | . 60 60 . . Disable Machine 90 | . 15 75 . . Destroy Structure 85 | . 1 69 15 . Lose Combat Pursuer 120 | . 60 60 . . Influence Decreases 2014 | 25 400 657 866 66 Entered New Map 634 | . . 76 492 66 Time Decay 1330 | 25 380 551 374 . Lost Part 50 | . 20 30 . . Squads Dispatched 8 | . 2 6 . . Investigation 5 | . 2 3 . . Extermination . | . . . . . Reinforcement 2 | . . 2 . . Assault 1 | . . 1 . . Garrison . | . . . . . Intercept . | . . . . . Searches Triggered . | . . . . . Construction Impeded 1 | . . 1 . . Haulers Reinforced . | . . . . . Active Scanning Responses . | . . . . . Cargo Convoy Interrupts . | . . . . . Stealth | -11 -10 -9 -9 -9 --------- Run | Yrd Mat Mat Min Exi Distress Signals 7 | . 1 6 . . Communications Jammed . | . . . . . Distress Signals . | . . . . . Times Spotted 98 | . 25 48 16 9 Peak Tracking Total 20 | . 5 5 20 10 Tactical Retreats 7 | . 3 3 . 1 Traps | -11 -10 -9 -9 -9 ------- Run | Yrd Mat Mat Min Exi Traps Triggered 4 | . 3 1 . . Indirectly . | . . . . . Trap Hack Attempts . | . . . . . Triggered . | . . . . . Disarmed . | . . . . . Reprogrammed . | . . . . . Reused 4 | . . . . 4 Traps Extracted . | . . . . . Installed 4 | . . . . 4 Triggered . | . . . . . Most Traps Carried 4 | . . . 4 4 Machines | -11 -10 -9 -9 -9 ---------- Run | Yrd Mat Mat Min Exi Machines Disabled 10 | . 1 5 . 4 Max in Single Turn 2 | . 1 2 . 1 Machines Repaired . | . . . . . Machines Dismantled . | . . . . . Machines Sabotaged . | . . . . . Overloaded Fab Kills . | . . . . . Hacking | -11 -10 -9 -9 -9 --------- Run | Yrd Mat Mat Min Exi Machines Accessed 20 | . 9 8 1 2 Terminals 12 | . 7 5 . . Fabricators . | . . . . . Repair Stations . | . . . . . Recycling Units 4 | . 2 2 . . Scanalyzers 1 | . . 1 . . Garrison Access . | . . . . . Total Hacks 54 | . 27 24 1 2 Successful 31 | . 13 15 1 2 Failed 22 | . 14 8 . . Catastrophic . | . . . . . Database Lockouts 1 | . . 1 . . Manual 37 | . 23 13 . 1 Terminals 29 | . 19 10 . . Fabricators . | . . . . . Repair Stations . | . . . . . Recycling Units 17 | . 8 9 . . Scanalyzers 5 | . . 5 . . Garrison Access . | . . . . . Terminal Hacks 4 | . 1 . 1 2 Record 1 | . . . . 1 Robot Analysis 1 | . 1 . . . Open Door 1 | . . . 1 . Proto ID Catalog 1 | . . . . 1 Fabricator Hacks . | . . . . . Repair Station Hacks . | . . . . . Recycling Unit Hacks 4 | . 1 3 . . Retrieve Components 4 | . 1 3 . . Scanalyzer 3 | . . 3 . . Retrieve Study 3 | . . 3 . . Garrison Access Hacks . | . . . . . Unauthorized Hacks 20 | . 11 9 . . Terminals 16 | . 9 7 . . Botnet 6 | . 3 3 . . Skim 10 | . 6 4 . . Fabricators . | . . . . . Repair Stations . | . . . . . Recycling Units 4 | . 2 2 . . Tunnel 4 | . 2 2 . . Scanalyzers . | . . . . . Garrison Access . | . . . . . Data Cores Recovered . | . . . . . Used . | . . . . . Hacking Detections 14 | . 9 5 . . Full Trace Events . | . . . . . Feedback Events . | . . . . . Feedback Blocked . | . . . . . Robot Schematics Acquired . | . . . . . Robots Built . | . . . . . Authchips . | . . . . . Time . | . . . . . Total Robot Build Rating . | . . . . . Part Schematics Acquired . | . . . . . Parts Built . | . . . . . Authchips . | . . . . . Time . | . . . . . Total Part Build Rating . | . . . . . Part Studies Acquired 3 | . . 3 . . Parts Repaired . | . . . . . Time . | . . . . . Parts Recycled . | . . . . . Recycled Matter . | . . . . . Retrieved Matter . | . . . . . Retrieved Components 19 | . 9 10 . . Parts Scanalyzed . | . . . . . Part Schematics Acquired . | . . . . . Parts Damaged . | . . . . . Bothacking | -11 -10 -9 -9 -9 ------------ Run | Yrd Mat Mat Min Exi Used RIF Installer . | . . . . . Robots Hacked . | . . . . . Non-combat . | . . . . . Combat . | . . . . . Robot Hacks Applied . | . . . . . Relay Couplers Released . | . . . . . Fabnet Peak Effective % . | . . . . . Robots Rewired . | . . . . . Allies Hacked . | . . . . . Hacks Repelled . | . . . . . Allies | -11 -10 -9 -9 -9 -------- Run | Yrd Mat Mat Min Exi Total Allies 2 | . . . 2 . Largest Group 2 | . . . 2 1 Highest-Rated Group 42 | . . . 42 11 Highest-Rated Ally 31 | . . . 31 11 Total Orders . | . . . . . Ally Attacks 7 | . . . 7 . Total Damage 146 | . . . 146 . Kills 2 | . . . 2 . Allies Corrupted . | . . . . . Allies Melted . | . . . . . Intel | -11 -10 -9 -9 -9 ------- Run | Yrd Mat Mat Min Exi Active Infowar (turns) 4160 | 81 1275 1687 424 693 Seismic 4160 | 81 1275 1687 424 693 Robot Analysis Total 1 | . 1 . . . Derelict Logs Recovered . | . . . . . Drone Launches . | . . . . . Drone Recoveries . | . . . . . Exploration | -11 -10 -9 -9 -9 ------------- Run | Yrd Mat Mat Min Exi Turns Passed 5085 | 168 1362 1741 865 949 Spaces Moved 2425 | 75 670 758 462 460 Core 10 | 5 . . . 5 Treads 2385 | 70 670 758 462 425 Legs 30 | . . . . 30 Wheels . | . . . . . Hover . | . . . . . Flight . | . . . . . Fastest Speed 50 | 50 160 160 160 160 Average Speed 161 | 152 160 160 160 169 Slowest Speed 800 | 160 160 160 160 800 Overloaded Moves . | . . . . . Propulsion Burnouts . | . . . . . Robots Hopped . | . . . . . Potential Cave-ins . | . . . . . Cave-ins Triggered . | . . . . . Exploration Rate (%) 63 | 4 97 67 90 60 Regions Visited 4 Branch Regions 2 Pre-discovered Areas 7 | . 3 2 1 1 Known Exits Taken 2 | . 1 1 . . Unknown Exits Taken 2 | 1 . . 1 . Scrap Searched 2 | . . . 2 . Spaces Dug . | . . . . . Terrain Destroyed 124 | . . 76 22 26 Melee . | . . . . . Projectile . | . . . . . AOE 124 | . . 76 22 26 Terrain Rammed . | . . . . . Walls Destroyed . | . . . . . Machines Disabled . | . . . . . Actions | -11 -10 -9 -9 -9 --------- Run | Yrd Mat Mat Min Exi Total 3163 | 99 851 1088 575 550 Wait 379 | . 112 179 77 11 Move 2421 | 74 669 757 461 460 Hop . | . . . . . Pick Up 50 | 5 7 19 9 10 Fast Attach 13 | 7 . 3 . 3 Attach 11 | . 2 4 . 5 Detach 1 | . . 1 . . Swap 36 | . 2 17 10 7 Drop 45 | . 4 17 11 13 Fire 201 | 13 55 89 7 37 Melee . | . . . . . Ram . | . . . . . Kick . | . . . . . Crush 2 | . . 2 . . Escape Stasis . | . . . . . Rewire . | . . . . . Trap 4 | . . . . 4 Miscellaneous . | . . . . . Route ------- -11/Scrapyard -10/Materials (discovered 5 exits: *Mat x3 / *Min / Sub) -9/Materials (discovered 4 exits: *Mat x2 / *Min x2) -9/Mines (discovered 3 exits: *Mat x2 / *Exi) -9/Exiles History --------- Turn | Location | Event 3 | -11/Scrapyard | Discovered new exit (range 16) 169 | -11/Scrapyard | Entered Materials 303 | -10/Materials | Build established: Mutant 362 | -10/Materials | Discovered new exit (range 15) 410 | -10/Materials | Discovered new exit (range 5) 725 | -10/Materials | Discovered new exit (range 9) 936 | -10/Materials | Core integrity fell below 50% 996 | -10/Materials | Discovered new exit (range 3) 1257 | -10/Materials | Identified exit to Subcaves 1323 | -10/Materials | Identified exit to Mines 1323 | -10/Materials | Identified exit to Materials 1422 | -10/Materials | Loaded intel: 1 repair station location 1455 | -10/Materials | Learned location of 2 exits from Materials 1531 | -10/Materials | Entered another Materials area 1531 | -9/Materials | Evolved 2 slots: Propulsion x1, Weapon x1 1532 | -9/Materials | Identified exit to Materials 1532 | -9/Materials | Identified exit to Mines 1838 | -9/Materials | Build established: Gunner 2175 | -9/Materials | Build established: Scavenger-Gunner 2319 | -9/Materials | Discovered exit to Materials (range 7) 2358 | -9/Materials | Central database locked down 3096 | -9/Materials | Discovered exit to Mines (range 16) 3131 | -9/Materials | First assault squad dispatched 3272 | -9/Materials | Entered Mines 3273 | -9/Mines | Assembled infested the area 3278 | -9/Mines | Core integrity fell below 50% 3387 | -9/Mines | Discovered exit to Materials (range 4) 3658 | -9/Mines | Build established: Scavenger-Tank 3714 | -9/Mines | Found a damaged Exp. Sensor Array with a note attached 3765 | -9/Mines | Joined a pair of Derelicts in attacking an 0b10 outpost 3967 | -9/Mines | Found a hidden stash of uninstalled traps 4023 | -9/Mines | Discovered exit to Materials (range 11) 4048 | -9/Mines | Met a Derelict who couldn't figure out how to use a Trap Extractor 4085 | -9/Mines | Build established: Scavenger-Gunner 4120 | -9/Mines | Deemed a non-threat by the Exiles lab entrance 4120 | -9/Mines | Discovered new exit (range 5) 4137 | -9/Mines | Entered Exiles 4137 | -9/Exiles | Accompanied by 1 ally 4176 | -9/Exiles | Met 8R-AWN 4205 | -9/Exiles | Met EX-HEX 4270 | -9/Exiles | Met EX-DEC 4277 | -9/Exiles | Learned location of Zion (-6) 4435 | -9/Exiles | Met EX-BIN 4457 | -9/Exiles | Aligned with FarCom system 4459 | -9/Exiles | Given EX-Vault access code 4496 | -9/Exiles | Opened EX-Vault 4537 | -9/Exiles | Warned to stay clear of 0b10 Research branches 4790 | -9/Exiles | Attacked by the Exiles 4959 | -9/Exiles | Destroyed 8R-AWN 4968 | -9/Exiles | Lost 8 parts (1p3n1u3w) 4985 | -9/Exiles | Found Corrupted Prototype Ballistic Gun 4985 | -9/Exiles | Identified 8R-AWN's Boregun 5085 | -9/Exiles | Core integrity fell below 20% 5086 | -9/Exiles | Destroyed by DAS Turret with DAS Cannon Last Messages --------------- [Achievement: Who Guards The Bodyguard?] 04985_ Integrated Corrupted 8R-AWN's Boregun (+1). 04988_ Acquired Rnf. Fission Core. 04990_ Acquired 30 matter. 04993_ Acquired Corrupted Adv. Weapon Cycler. 05000_ Acquired Imp. Assault Rifle. 05057_ Machine disabled. 05057_ Med. Armor Plating destroyed. 05057_ Destroyed Med. Armor Plating. 05058_ Imp. Grenade Launcher destroyed. 05058_ Knocked back. 05063_ 3TZ:DXPK# 7LT/>SOKZBUCVW#BZKDV: 05068_ Imp. Assault Rifle destroyed. 05068_ Knocked back. 05074_ Adv. Myomer Leg destroyed. 05075_ Acquired 9 matter. 05076_ Knocked back. 05077_ Acquired 3 matter. 05082_ Imp. Grenade Launcher destroyed. 05082_ Rnf. Fission Core destroyed. Map ----- +----------------------------------------------------+ | ?????????????????????????????????????????????????# | | ???????????????????????????????????????????####??# | | ???????????????????????????????????????????"""""?# | | ??????????????????????????????????????????"""" ## | | ?????????????????????????????????????????#""X" | | ?????????????????????????????????????????#" | | ?????????????????????????????????????????#" ## | | ?????????????????????????????????????????#""""""?# | | ??????????????????????????????????????????#"###??# | | ?????????????????????????????????????????????????# | | ?????????????????????????????????????????????????# | | ????????????????????????????????????????????????## | | ????????????????#######?????????????????????????#" | | ?? ######???????#!!! "#?????????????????????????#" | | ?? #""#??????# "#?????????????????????????#" | | ?? ??????# "#?????????????????????????#" | | ?? #????## ""#????????????####?????????#" | | ?? #####" ""#???????????? """????????#" | | ?? ##" ""?????????????" """#???????## | | ??? #" #??????????????" #????????# | | ?????# #?????????????"" #????????# | | ????????# ##????????????"" "#????????# | | ????????### ####????????? ""?????????# | | ??######## %";;######?????" "?????????## | | ??# """" % # %% ##????# #????????##" | | ??# % ###"" @ #??### ###?######"" | | ??# !! #?##" ####X# #"###""""""" | | ??#! !!"#??#" % """""" " "" | | ??# !""""" """ #?#"# "" """ " | | ??########"# # #?#### %% " | | ?????????### ###????## | | ???????????# #?????# # % | | ???????????# #?????### # | | ???????????# #???????## ### | | ???????????# #????????###?# | | ???????????# #????????????# """ | | ???????????# #???????????? #### | | ???????????# #???????????# ""##??? | | ???????????? ????????????# """##???? | | ???????????? ???????????? """##????? | | ???????????? ????????????# ""#?????? | | ???????????? ????????????# ##?????? | | ???????????? ????????????# ??????? | | ?????????????????????????#" ?????? | | ??????????????????????????#"" ????? | | ???????????????????????????"""" ????? | | ????????????????????????????? ?????? | | ?????????????????????????????? ??????? | | ???????????????????????????????" ????????? | | ?????????????????????????????????????????????????? | +----------------------------------------------------+ Best States ------------- Heat Dissipation 28 Energy Generation 19 Energy Capacity 310 Matter Stores 300 Matter Capacity 300 Sight Range 16 Terrain Scan Density 10 Armor Coverage 225 Evasion (%) 40 Recoil Reduction 3 Item Schematics ----------------- None Robot Schematics ------------------ None Fabricated ------------ Nothing Repaired ---------- Nothing Studied --------- Lgt. Treads | -9/Materials | Hacked Hvy. Assault Rifle | -9/Materials | Hacked Assault Rifle | -9/Materials | Hacked Alien Tech Used ----------------- None Achievements -------------- Who Guards The Bodyguard? Challenges ------------ None Game ------ Seed FortressDamperChargecaster Manual? 0 Play Time 00:28:58 Cumulative 329.0 hours Start 2026.03.06 @ 12:10:50 End 2026.03.06 @ 13:09:27 Sessions 1 Manual Loads 0 Difficulty Rogue Special Mode None Game No. 264 Rogue 264 Adventurer 0 Explorer 0 Win Type - Total 19 Types 10/0/7/2/0/0/0/0/0/0 Lore% 85 Gallery% 76 Achievement% 64 Wizard Run 0 Options --------- Layout 1 ASCII 0 Keyboard 0 Movement Numpad Keybinds 0 Fullscreen 1 Font 32/SmallcapsGlow Map View 77x35 Zoom Use 0% Tactical HUD 1 Map Filters NONE Filters NONE Steam 1 RUN: ddaa9a44-5d75-431e-bf96-f93b19b68818